fUSD/lending_fUSD_20260617
["ID","MTS","AMOUNT","RATE_DAILY","PERIOD"]
[425310030,1781689833000,-500.0,0.00015441,2]
[425310056,1781689833000,-152.0,0.00015816,2]
[425310047,1781689833000,-500.0,0.00015716,2]
[425310046,1781689833000,-317.7595961,0.00015715,2]
[425310041,1781689833000,-500.0,0.00015715,2]
[425310043,1781689833000,-237.0541545,0.00015715,2]
[425310052,1781689833000,-152.0,0.00015816,2]
[425310038,1781689833000,-159.97624917,0.00015607,2]
[425310039,1781689833000,-45.65375083,0.00015607,2]
[425310037,1781689833000,-307.46,0.00015468,2]
[425310045,1781689833000,-618.68943032,0.00015715,2]
[425310044,1781689833000,-500.0,0.00015715,2]
[425310042,1781689833000,-223.60643678,0.00015715,2]
[425310035,1781689833000,-335.94925094,0.00015442,2]
[425310036,1781689833000,-164.05074906,0.00015442,2]
[425310033,1781689833000,-500.0,0.00015441,2]
[425310040,1781689833000,-166.66,0.00015666,2]
[425310133,1781689834000,-433.05,0.00021183,2]
[425310128,1781689834000,-156.16897091,0.00021,2]
[425310127,1781689834000,-539.52801743,0.00021,10]
[425310129,1781689834000,-157.0,0.00021,2]
[425310124,1781689834000,-345.0,0.00021,2]
[425310123,1781689834000,-3140.4645866,0.0002089,2]
[425310125,1781689834000,-152.0,0.00021,2]
[425310134,1781689834000,-229.9088426,0.00021437,2]
[425310130,1781689834000,-598.0,0.00021,2]
[425310126,1781689834000,-215.0,0.00021,2]
[425310132,1781689834000,-156.0,0.00021,2]
[425310136,1781689834000,-166.66,0.0002146,2]
[425310131,1781689834000,-282.0,0.00021,2]
[425310144,1781689834000,-14161.1195066,0.0002157,2]
[425310135,1781689834000,-500.0,0.00021444,5]
[425310143,1781689834000,-2213.67945347,0.0002157,2]
[425310138,1781689834000,-500.0,0.00021569,2]
[425310141,1781689834000,-271.17317545,0.0002157,2]
[425310137,1781689834000,-2102.57,0.00021569,2]
[425310142,1781689834000,-1114.81839901,0.0002157,2]
[425310139,1781689834000,-500.0,0.00021569,2]
[425310140,1781689834000,-28648.77566554,0.0002157,2]
[425310145,1781689834000,-292.91733824,0.0002157,2]
[425310147,1781689838000,-500.0,0.0001536,2]
[425310149,1781689838000,-307.45,0.00017096,2]
[425310151,1781689838000,-3660.38744476,0.0002157,2]
[425310155,1781689838000,-465.29519956,0.0002157,2]
[425310154,1781689838000,-1005.31361793,0.0002157,2]
[425310153,1781689838000,-648.58833066,0.0002157,2]
[425310157,1781689838000,-299.99,0.0002157,2]
[425310148,1781689838000,-500.0,0.0001536,2]
[425310168,1781689840000,-1589.51850603,0.0002157,2]
[425310167,1781689840000,-211.27418332,0.0001536,2]
[425310165,1781689840000,-500.0,0.0001536,2]
[425310166,1781689840000,-288.72581668,0.0001536,2]
[425310171,1781689841000,-8943.78386462,0.0002157,2]
[425310170,1781689841000,-8947.21879473,0.0002157,2]
[425310169,1781689841000,-2755.62230907,0.0002157,2]
[425310172,1781689841000,-9077.54866152,0.0002157,2]
[425310182,1781689847000,-1651.45923441,0.00021918,2]
[425310181,1781689847000,-905.50023944,0.00021918,2]
[425310179,1781689847000,-45.05164026,0.00021918,2]
[425310180,1781689847000,-1120.06441121,0.00021918,2]
[425310178,1781689847000,-104.94835974,0.00021918,2]
[425310177,1781689847000,-1979.32733941,0.0002157,2]
[425310175,1781689847000,-151.0,0.0001506,2]
[425310176,1781689847000,-500.0,0.0001536,2]
[425310201,1781689848000,-151.0,0.0002215,2]
[425310197,1781689848000,-151.0,0.0002215,2]
[425310194,1781689848000,-151.0,0.0002215,2]
[425310191,1781689848000,-156.0,0.00022,2]
[425310202,1781689848000,-500.0,0.0002215,2]
[425310192,1781689848000,-500.0,0.00022133,5]
[425310185,1781689848000,-926.30068494,0.00021918,2]
[425310188,1781689848000,-157.0,0.00022,2]
[425310187,1781689848000,-215.0,0.00022,2]
[425310190,1781689848000,-282.0,0.00022,2]
[425310196,1781689848000,-151.0,0.0002215,2]
[425310186,1781689848000,-152.0,0.00022,2]
[425310184,1781689848000,-396.67543,0.00021918,2]
[425310189,1781689848000,-598.0,0.00022,2]
[425310195,1781689848000,-151.0,0.0002215,2]
[425310193,1781689848000,-151.0,0.0002215,2]
[425310199,1781689848000,-151.0,0.0002215,2]
[425310216,1781689848000,-9.79037134,0.00022403,2]
[425310212,1781689848000,-232.36,0.00022403,2]
[425310213,1781689848000,-490.20962866,0.00022403,2]
[425310208,1781689848000,-151.0,0.0002215,2]
[425310207,1781689848000,-151.0,0.0002215,2]
[425310209,1781689848000,-500.0,0.00022403,2]
[425310210,1781689848000,-154.86,0.00022403,2]
[425310217,1781689848000,-500.0,0.00022403,2]
[425310205,1781689848000,-151.0,0.0002215,2]
[425310211,1781689848000,-500.0,0.00022403,2]
[425310200,1781689848000,-151.0,0.0002215,2]
[425310203,1781689848000,-151.0,0.0002215,2]
[425310198,1781689848000,-151.0,0.0002215,2]
[425310204,1781689848000,-151.0,0.0002215,2]
[425310206,1781689848000,-151.0,0.0002215,2]
[425310218,1781689848000,-80.96744877,0.00022403,2]
[425310227,1781689879000,-419.03255123,0.00022403,2]
[425310228,1781689930000,-245.17945938,0.0001544,2]
[425310229,1781689931000,317.1206,0.00014671,2]
[425310234,1781689985000,-150.0,0.00015149,2]
[425310236,1781690037000,-150.0,0.00015156,2]
[425310237,1781690209000,250.0,0.00014,2]
[425310238,1781690232000,-152.0,0.00014969,7]
[425310239,1781690254000,-150.0,0.00014979,2]
[425310241,1781690286000,-500.0,0.00014988,2]
[425310243,1781690307000,208.43133724,0.00014188,2]
[425310242,1781690307000,310.64293578,0.000142,2]
[425310245,1781690308000,-500.0,0.00014988,2]
[425310244,1781690308000,250.0,0.00014194,2]
[425310246,1781690339000,-500.0,0.00014987,2]
[425310247,1781690361000,-500.0,0.00014987,2]
[425310248,1781690393000,-500.0,0.00014987,2]
[425310249,1781690415000,-500.0,0.00014987,2]
[425310251,1781690446000,-3953.84178058,0.000149,2]
[425310252,1781690469000,-3953.84178058,0.000149,2]
[425310253,1781690491000,-3953.84178058,0.000149,2]
[425310258,1781690513000,-97.66966487,0.00014899,2]
[425310256,1781690513000,-500.0,0.00014899,2]
[425310255,1781690513000,-315.31168222,0.00014899,2]
[425310257,1781690513000,-156.52450575,0.00014899,2]
[425310254,1781690513000,-171.62562157,0.00014899,2]
[425310259,1781690545000,-217.57,0.00014899,2]
[425310260,1781690566000,-184.76033513,0.00014899,2]
[425310262,1781690619000,-500.0,0.00014898,2]
[425310264,1781690673000,166.66,0.00014616,2]
[425310263,1781690673000,166.66,0.00014315,2]
[425310265,1781690703000,200.0,0.00014627,2]
[425310267,1781690828000,-264.21933796,0.00014836,2]
[425310266,1781690828000,-1027.38973346,0.00014836,2]
[425310272,1781690858000,6800.0,0.000147,5]
[425310271,1781690858000,5100.0,0.000146,5]
[425310270,1781690858000,3400.0,0.000145,5]
[425310269,1781690858000,1700.0,0.000144,5]
[425310268,1781690858000,-887.26,0.00014704,2]
[425310273,1781690870000,173.88,0.00014618,2]
[425310274,1781690911000,-2497.01234528,0.000148,5]
[425310275,1781690933000,-1241.13147441,0.000148,5]
[425310277,1781690955000,-3520.7247059,0.000148,5]
[425310276,1781690955000,-1241.13147441,0.000148,5]
[425310279,1781690956000,-609.41620898,0.00014835,2]
[425310278,1781690956000,-500.0,0.00014835,2]
[425310281,1781690956000,-717.93526779,0.00014836,2]
[425310280,1781690956000,-2447.07842352,0.00014836,2]
[425310282,1781690976000,-168.35305832,0.00014799,2]
[425310283,1781690998000,-168.35305832,0.00014799,2]
[425310285,1781691020000,446.23,0.00014574,2]
[425310284,1781691020000,-163.29388336,0.00014799,2]
[425310350,1781691032000,-480.11787712,0.00014799,2]
[425310348,1781691032000,-500.0,0.00014799,2]
[425310352,1781691032000,-487.7001041,0.00014799,2]
[425310353,1781691032000,-500.0,0.00014799,2]
[425310355,1781691032000,-500.0,0.00014799,2]
[425310356,1781691032000,-500.0,0.00014799,2]
[425310358,1781691032000,-200.0,0.00014799,2]
[425310359,1781691032000,-4065.11536386,0.00014836,2]
[425310357,1781691032000,-500.0,0.00014799,2]
[425310363,1781691032000,-824.83,0.00014836,2]
[425310362,1781691032000,-485.4185,0.00014836,2]
[425310360,1781691032000,-1582.62736111,0.00014836,2]
[425310364,1781691032000,-3710.28182837,0.00014836,2]
[425310361,1781691032000,-552.0,0.00014836,2]
[425310367,1781691032000,-292.27339365,0.00014897,2]
[425310366,1781691032000,-600.0,0.00014897,2]
[425310368,1781691032000,-313.8376326,0.00014899,2]
[425310374,1781691032000,-352.31059545,0.000149,2]
[425310371,1781691032000,-6000.0,0.000149,2]
[425310370,1781691032000,-174.567,0.00014899,2]
[425310369,1781691032000,-2145.504,0.00014899,2]
[425310372,1781691032000,-183.14440788,0.000149,2]
[425310365,1781691032000,-9681.1803,0.00014836,2]
[425310349,1781691032000,-19.88212288,0.00014799,2]
[425310351,1781691032000,-12.2998959,0.00014799,2]
[425310345,1781691032000,-500.0,0.00014799,2]
[425310322,1781691032000,-25.79675041,0.00014799,2]
[425310327,1781691032000,-500.0,0.00014799,2]
[425310324,1781691032000,-500.0,0.00014799,2]
[425310323,1781691032000,-474.20324959,0.00014799,2]
[425310321,1781691032000,-500.0,0.00014799,2]
[425310326,1781691032000,-500.0,0.00014799,2]
[425310325,1781691032000,-500.0,0.00014799,2]
[425310329,1781691032000,-203.23318311,0.00014799,2]
[425310331,1781691032000,-500.0,0.00014799,2]
[425310328,1781691032000,-500.0,0.00014799,2]
[425310354,1781691032000,-500.0,0.00014799,2]
[425310332,1781691032000,-489.88212288,0.00014799,2]
[425310342,1781691032000,-500.0,0.00014799,2]
[425310334,1781691032000,-10.11787712,0.00014799,2]
[425310341,1781691032000,-500.0,0.00014799,2]
[425310330,1781691032000,-500.0,0.00014799,2]
[425310336,1781691032000,-500.0,0.00014799,2]
[425310337,1781691032000,-500.0,0.00014799,2]
[425310343,1781691032000,-500.0,0.00014799,2]
[425310346,1781691032000,-500.0,0.00014799,2]
[425310344,1781691032000,-500.0,0.00014799,2]
[425310347,1781691032000,-500.0,0.00014799,2]
[425310339,1781691032000,-500.0,0.00014799,2]
[425310373,1781691032000,-6324.54197643,0.000149,2]
[425310376,1781691032000,-348.50366075,0.000149,2]
[425310379,1781691032000,-1700.0,0.000149,5]
[425310405,1781691032000,-1927.36,0.00014999,2]
[425310407,1781691032000,-1927.36,0.00014999,2]
[425310408,1781691032000,-1927.36,0.00014999,2]
[425310402,1781691032000,-1927.36,0.00014999,2]
[425310411,1781691032000,-1927.36,0.00014999,2]
[425310410,1781691032000,-1927.36,0.00014999,2]
[425310409,1781691032000,-1927.36,0.00014999,2]
[425310406,1781691032000,-1927.36,0.00014999,2]
[425310412,1781691032000,-1927.36,0.00014999,2]
[425310414,1781691032000,-1927.36,0.00014999,2]
[425310404,1781691032000,-1927.36,0.00014999,2]
[425310424,1781691032000,-1190.69306236,0.00014999,2]
[425310413,1781691032000,-1927.36,0.00014999,2]
[425310422,1781691032000,-1422.9008959,0.00014999,2]
[425310417,1781691032000,-1927.36,0.00014999,2]
[425310418,1781691032000,-28.78426992,0.00014999,2]
[425310420,1781691032000,-1927.36,0.00014999,2]
[425310421,1781691032000,-504.4591041,0.00014999,2]
[425310416,1781691032000,-1927.36,0.00014999,2]
[425310423,1781691032000,-59.38332559,0.00014999,2]
[425310419,1781691032000,-1898.57573008,0.00014999,2]
[425310425,1781691032000,-323.93990001,0.00014999,2]
[425310415,1781691032000,-1927.36,0.00014999,2]
[425310375,1781691032000,-5533.0,0.000149,2]
[425310403,1781691032000,-1927.36,0.00014999,2]
[425310396,1781691032000,-500.0,0.00014999,2]
[425310381,1781691032000,-230.9930676,0.000149,2]
[425310383,1781691032000,-390.1019425,0.00014902,2]
[425310387,1781691032000,-8879.42830997,0.00014989,2]
[425310386,1781691032000,-152.0,0.00014985,7]
[425310388,1781691032000,-200.75269713,0.0001499,2]
[425310378,1781691032000,-1697.18570677,0.000149,2]
[425310382,1781691032000,-600.0,0.00014902,2]
[425310380,1781691032000,-331.73362532,0.000149,2]
[425310377,1781691032000,-21208.18914461,0.000149,2]
[425310384,1781691032000,-166.66,0.00014917,2]
[425310401,1781691032000,-1927.36,0.00014999,2]
[425310385,1781691032000,-152.0,0.00014985,7]
[425310398,1781691032000,-500.0,0.00014999,2]
[425310400,1781691032000,-206.93226573,0.00014999,2]
[425310399,1781691032000,-216.67691616,0.00014999,2]
[425310389,1781691032000,-500.0,0.00014999,2]
[425310392,1781691032000,-500.0,0.00014999,2]
[425310393,1781691032000,-500.0,0.00014999,2]
[425310391,1781691032000,-500.0,0.00014999,2]
[425310394,1781691032000,-500.0,0.00014999,2]
[425310395,1781691032000,-500.0,0.00014999,2]
[425310397,1781691032000,-500.0,0.00014999,2]
[425310390,1781691032000,-500.0,0.00014999,2]
[425310455,1781691039000,-1927.49412762,0.00014999,2]
[425310456,1781691039000,-33869.68137289,0.00015,2]
[425310452,1781691039000,-353.34371204,0.00014999,2]
[425310454,1781691039000,-1927.36,0.00014999,2]
[425310453,1781691039000,-1927.36,0.00014999,2]
[425310457,1781691039000,-6675.70760773,0.00015,2]
[425310463,1781691039000,-647.2445498,0.00015,2]
[425310459,1781691039000,-151.0,0.00015,2]
[425310460,1781691039000,-8108.79218557,0.00015,2]
[425310462,1781691039000,-541.00232725,0.00015,2]
[425310461,1781691039000,-49714.50020664,0.00015,2]
[425310465,1781691039000,-395.16,0.00015,2]
[425310464,1781691039000,-728.11,0.00015,2]
[425310458,1781691039000,-150.0,0.00015,2]
[425310506,1781691040000,-500.0,0.00016438,2]
[425310504,1781691040000,-500.0,0.00016438,2]
[425310503,1781691040000,-224.5,0.00016438,2]
[425310499,1781691040000,-300.0,0.00016386,2]
[425310501,1781691040000,-250.0,0.00016386,2]
[425310505,1781691040000,-500.0,0.00016438,2]
[425310502,1781691040000,-446.23,0.00016396,2]
[425310500,1781691040000,-600.0,0.00016386,2]
[425310497,1781691040000,-250.0,0.00016279,2]
[425310508,1781691040000,-500.0,0.00016438,2]
[425310509,1781691040000,-500.0,0.00016438,2]
[425310510,1781691040000,-500.0,0.00016438,2]
[425310491,1781691040000,-500.0,0.00016243,2]
[425310520,1781691040000,-500.0,0.00016438,2]
[425310512,1781691040000,-500.0,0.00016438,2]
[425310511,1781691040000,-500.0,0.00016438,2]
[425310515,1781691040000,-500.0,0.00016438,2]
[425310513,1781691040000,-500.0,0.00016438,2]
[425310514,1781691040000,-500.0,0.00016438,2]
[425310517,1781691040000,-500.0,0.00016438,2]
[425310498,1781691040000,-272.12703751,0.00016381,2]
[425310494,1781691040000,-151.0,0.00016243,2]
[425310493,1781691040000,-151.0,0.00016243,2]
[425310495,1781691040000,-600.0,0.00016279,2]
[425310474,1781691040000,-1322.03,0.00015,2]
[425310473,1781691040000,-5630647.22044634,0.00015,2]
[425310472,1781691040000,-904.55815358,0.00015,2]
[425310475,1781691040000,-150.0,0.00015156,2]
[425310476,1781691040000,-151.0,0.00015156,2]
[425310479,1781691040000,-321.0,0.00015164,2]
[425310484,1781691040000,-1268.96,0.00015362,2]
[425310480,1781691040000,-153.0,0.00015177,2]
[425310483,1781691040000,-151.0,0.00015261,2]
[425310477,1781691040000,-151.0,0.00015156,2]
[425310478,1781691040000,-150.0,0.00015156,2]
[425310482,1781691040000,-166.66,0.00015219,2]
[425310485,1781691040000,-151.0,0.0001544,2]
[425310481,1781691040000,-317.0,0.00015199,2]
[425310487,1781691040000,-166.66,0.00015821,2]
[425310489,1781691040000,-500.0,0.00016243,2]
[425310490,1781691040000,-327.68515701,0.00016243,2]
[425310488,1781691040000,-62049.0,0.000162,2]
[425310486,1781691040000,-166.66,0.0001552,2]
[425310518,1781691040000,-500.0,0.00016438,2]
[425310492,1781691040000,-500.0,0.00016243,2]
[425310496,1781691040000,-3674.62390792,0.00016279,2]
[425310516,1781691040000,-500.0,0.00016438,2]
[425310507,1781691040000,-500.0,0.00016438,2]
[425310521,1781691040000,-232.423239,0.00016438,2]
[425310583,1781691040000,-150.0,0.00019902,2]
[425310579,1781691040000,-245.29,0.00019793,2]
[425310573,1781691040000,-230.9930676,0.00019714,2]
[425310589,1781691040000,-1161.09999809,0.0002,2]
[425310587,1781691040000,-2000.0,0.0002,7]
[425310585,1781691040000,-183.14440784,0.00019943,2]
[425310576,1781691040000,-166.66,0.00019756,2]
[425310594,1781691040000,-151.0,0.0002,2]
[425310611,1781691040000,-156.0,0.0002,2]
[425310596,1781691040000,-155.0,0.0002,2]
[425310565,1781691040000,-197.08,0.00019236,2]
[425310602,1781691040000,-666.0,0.0002,2]
[425310606,1781691040000,-152.0,0.0002,2]
[425310598,1781691040000,-5229.15,0.0002,2]
[425310591,1781691040000,-156.0,0.0002,2]
[425310604,1781691040000,-485.844,0.0002,2]
[425310609,1781691040000,-166.0,0.0002,2]
[425310614,1781691040000,-253.0,0.0002,2]
[425310616,1781691040000,-297.0,0.0002,2]
[425310519,1781691040000,-335.85595029,0.00016438,2]
[425310618,1781691040000,-250.0,0.00020013,2]
[425310622,1781691040000,-224.5,0.00020381,2]
[425310600,1781691040000,-554.0,0.0002,2]
[425310571,1781691040000,-189.72,0.000195,9]
[425310620,1781691040000,-446.23,0.00020039,2]
[425310568,1781691040000,-2464.23309254,0.000194,2]
[425310563,1781691040000,-884.8389601,0.00019209,2]
[425310523,1781691040000,-5528.0,0.000169,5]
[425310532,1781691040000,-174.090308,0.00017581,2]
[425310526,1781691040000,-174.090307,0.00017069,2]
[425310534,1781691040000,-1423.33,0.00017591,2]
[425310528,1781691040000,-174.090307,0.0001724,2]
[425310530,1781691040000,-183.14440784,0.00017422,2]
[425310527,1781691040000,-307.45,0.00017112,2]
[425310536,1781691040000,-1322.03,0.000176,2]
[425310529,1781691040000,-174.090307,0.00017411,2]
[425310538,1781691040000,-1500.0,0.00018113,2]
[425310522,1781691040000,-5528.0,0.000165,3]
[425310551,1781691040000,-511.24,0.00018654,2]
[425310542,1781691040000,-185.05,0.00018279,2]
[425310557,1781691040000,-1888.31945311,0.00019,2]
[425310555,1781691040000,-157.48,0.00018811,2]
[425310553,1781691040000,-1555.5,0.00018661,2]
[425310540,1781691040000,-446.23,0.00018217,2]
[425310546,1781691040000,-200.08,0.00018437,2]
[425310549,1781691040000,-200.0,0.00018451,2]
[425310560,1781691040000,-1806.66,0.00019062,2]
[425310544,1781691040000,-224.5,0.0001841,2]
[425310692,1781691041000,-166.66,0.0002193,2]
[425310686,1781691041000,-1009.51,0.00021918,2]
[425310677,1781691041000,-246.17,0.00021757,2]
[425310681,1781691041000,-9999.99,0.00021757,2]
[425310679,1781691041000,-150.99,0.00021757,2]
[425310672,1781691041000,-305.47,0.00021644,4]
[425310670,1781691041000,-5010.33,0.00021634,2]
[425310683,1781691041000,-344.162191,0.00021776,2]
[425310688,1781691041000,-5000.0,0.00021918,2]
[425310694,1781691041000,-262.72587563,0.0002193,2]
[425310690,1781691041000,-150.0,0.00021918,2]
[425310701,1781691041000,-151.0,0.00021949,2]
[425310697,1781691041000,-151.0,0.00021948,2]
[425310706,1781691041000,-151.0,0.00021949,2]
[425310704,1781691041000,-151.0,0.00021949,2]
[425310708,1781691041000,-151.0,0.00021949,2]
[425310710,1781691041000,-151.0,0.00021949,2]
[425310668,1781691041000,-485.844,0.000216,2]
[425310712,1781691041000,-151.0,0.00021949,2]
[425310699,1781691041000,-151.0,0.00021949,2]
[425310674,1781691041000,-374.451824,0.00021668,2]
[425310647,1781691041000,-163.0,0.00021,2]
[425310664,1781691041000,-581.38764277,0.00021569,2]
[425310717,1781691041000,-151.0,0.00021949,2]
[425310628,1781691041000,-166.66,0.00020843,2]
[425310627,1781691041000,-2142.58,0.00020548,2]
[425310631,1781691041000,-200.0,0.00020999,2]
[425310635,1781691041000,-151.0,0.00021,2]
[425310633,1781691041000,-156.0,0.00021,2]
[425310640,1781691041000,-554.0,0.00021,2]
[425310624,1781691041000,-1322.03,0.000204,2]
[425310638,1781691041000,-155.0,0.00021,2]
[425310666,1781691041000,-177.830353,0.00021587,2]
[425310642,1781691041000,-666.0,0.00021,2]
[425310653,1781691041000,-245.29,0.00021163,2]
[425310651,1781691041000,-297.0,0.00021,2]
[425310649,1781691041000,-253.0,0.00021,2]
[425310661,1781691041000,-205.876123,0.0002156,2]
[425310655,1781691041000,-2165.73,0.00021273,2]
[425310663,1781691041000,-225.532622,0.0002156,2]
[425310659,1781691041000,-264.0,0.00021515,2]
[425310657,1781691041000,-279.83258745,0.000214,3]
[425310660,1781691041000,-225.532622,0.00021554,2]
[425310644,1781691041000,-152.0,0.00021,2]
[425310721,1781691041000,-151.0,0.00021949,2]
[425310810,1781691041000,-1322.03,0.000227,7]
[425310719,1781691041000,-151.0,0.00021949,2]
[425310781,1781691041000,-224.5,0.00022353,2]
[425310779,1781691041000,-1390.0,0.0002233,5]
[425310777,1781691041000,-312.04883557,0.000223,2]
[425310786,1781691041000,-151.0,0.00022403,2]
[425310783,1781691041000,-500.0,0.00022381,2]
[425310715,1781691041000,-151.0,0.00021949,2]
[425310799,1781691041000,-183.14440784,0.00022465,2]
[425310804,1781691041000,-2190.42,0.00022466,2]
[425310797,1781691041000,-320.0,0.00022404,2]
[425310808,1781691041000,-312.04883557,0.000227,2]
[425310819,1781691041000,-328313.97011282,0.000229,2]
[425310815,1781691041000,-2000.0,0.000228,2]
[425310787,1781691041000,-154.645292,0.00022403,2]
[425310790,1781691041000,-400.0,0.00022403,2]
[425310801,1781691041000,-331.7336253,0.00022465,2]
[425310812,1781691041000,-170.205374,0.00022751,14]
[425310793,1781691041000,-402.0,0.00022403,2]
[425310806,1781691041000,-312.04883557,0.000225,2]
[425310817,1781691041000,-264.0,0.00022885,2]
[425310761,1781691041000,-297.0,0.00022,2]
[425310775,1781691041000,-161.57413015,0.000223,2]
[425310795,1781691041000,-402.0,0.00022404,2]
[425310773,1781691041000,-277.10402259,0.000223,2]
[425310726,1781691041000,-151.0,0.00021949,2]
[425310770,1781691041000,-160.0,0.00022267,2]
[425310724,1781691041000,-151.0,0.00021949,2]
[425310731,1781691041000,-151.0,0.00021949,2]
[425310736,1781691041000,-151.0,0.00021949,2]
[425310733,1781691041000,-151.0,0.00021949,2]
[425310737,1781691041000,-151.0,0.00021949,2]
[425310742,1781691041000,-151.0,0.00021949,2]
[425310740,1781691041000,-151.0,0.00021949,2]
[425310751,1781691041000,-554.0,0.00022,2]
[425310728,1781691041000,-151.0,0.00021949,2]
[425310744,1781691041000,-170.86406734,0.00022,2]
[425310746,1781691041000,-154.0,0.00022,2]
[425310768,1781691041000,-216.17170803,0.00022261,2]
[425310764,1781691041000,-350.0,0.00022235,2]
[425310759,1781691041000,-253.0,0.00022,2]
[425310766,1781691041000,-350.0,0.00022236,4]
[425310755,1781691041000,-152.0,0.00022,2]
[425310753,1781691041000,-666.0,0.00022,2]
[425310748,1781691041000,-169.0,0.00022,2]
[425310757,1781691041000,-4172.47,0.00022,2]
[425310954,1781691043000,-150.0,0.00024164,2]
[425310956,1781691043000,-17778.3,0.00024174,2]
[425310950,1781691043000,-666.0,0.00024,2]
[425310955,1781691043000,-568.74,0.00024174,2]
[425310948,1781691043000,-6079.0,0.00023762,2]
[425310951,1781691043000,-169.61186986,0.00024,2]
[425310949,1781691043000,-554.0,0.00024,2]
[425310961,1781691043000,-224.5,0.00024324,2]
[425310953,1781691043000,-253.0,0.00024,2]
[425310960,1781691043000,-350.0,0.00024267,5]
[425310970,1781691043000,-174.61919141,0.00024627,2]
[425310959,1781691043000,-638.0,0.0002421,10]
[425310962,1781691043000,-3558.0,0.00024368,2]
[425310966,1781691043000,-230.9930676,0.00024527,2]
[425310958,1781691043000,-1322.03,0.000242,7]
[425310952,1781691043000,-156.96589794,0.00024,2]
[425310947,1781691043000,-383.0,0.00023762,2]
[425310964,1781691043000,-500.0,0.00024453,2]
[425310946,1781691043000,-1359.0,0.00023762,2]
[425310924,1781691043000,-49080.22608718,0.000229,2]
[425310925,1781691043000,-312.04883557,0.000229,2]
[425310927,1781691043000,-554.0,0.00023,2]
[425310926,1781691043000,-350.0,0.00022932,4]
[425310928,1781691043000,-666.0,0.00023,2]
[425310930,1781691043000,-152.0,0.00023,2]
[425310941,1781691043000,-433.05,0.00023301,2]
[425310945,1781691043000,-500.0,0.00023741,2]
[425310940,1781691043000,-158.83131436,0.00023219,2]
[425310943,1781691043000,-1611.13,0.00023593,2]
[425310938,1781691043000,-312.04883557,0.000232,2]
[425310942,1781691043000,-503.57,0.00023319,2]
[425310932,1781691043000,-253.0,0.00023,2]
[425310936,1781691043000,-166.66,0.00023017,2]
[425310934,1781691043000,-150.0,0.00023014,2]
[425310939,1781691043000,-485.844,0.000232,2]
[425310944,1781691043000,-350.0,0.00023609,5]
[425310963,1781691043000,-350.0,0.00024384,5]
[425310971,1781691043000,-578.20924308,0.00024627,2]
[425310968,1781691043000,-1030.0,0.00024627,2]
[425310988,1781691043000,-500.0,0.00024627,2]
[425310992,1781691043000,-500.0,0.00024627,2]
[425310991,1781691043000,-152.0,0.00024627,2]
[425310990,1781691043000,-500.0,0.00024627,2]
[425310989,1781691043000,-152.0,0.00024627,2]
[425310995,1781691043000,-152.0,0.00024627,2]
[425310994,1781691043000,-500.0,0.00024627,2]
[425310987,1781691043000,-152.0,0.00024627,2]
[425310996,1781691043000,-500.0,0.00024627,2]
[425311002,1781691043000,-167.49,0.00024658,2]